[Event "*** SCC Grand Prix: Titled Tuesday Blitz"]
[Site "Chess.com"]
[Date "2020.09.29"]
[Round "5"]
[White "GelmanAlexander"]
[Black "dodorox"]
[Result "1-0"]
[WhiteElo "2540"]
[BlackElo "2043"]
[TimeControl "180+1"]
[EndTime "10:54:26 PDT"]
[Termination "GelmanAlexander won on time"]

1. d4 {[%clk 0:03:00.9]} 1... Nf6 {[%clk 0:02:59.1]} 2. Nc3 {[%clk 0:03:00.8]}
2... d5 {[%clk 0:02:55.9]} 3. Bf4 {[%clk 0:03:00.8]} 3... e6 {[%clk 0:02:50.3]}
4. Nb5 {[%clk 0:03:00.6]} 4... Na6 {[%clk 0:02:46.9]} 5. e3 {[%clk 0:02:56.5]}
5... c6 {[%clk 0:02:47]} 6. Nc3 {[%clk 0:02:56.5]} 6... Nc7 {[%clk 0:02:41]} 7.
Nf3 {[%clk 0:02:56.2]} 7... Bd6 {[%clk 0:02:38.7]} 8. Ne5 {[%clk 0:02:56.5]}
8... O-O {[%clk 0:02:28.7]} 9. Qf3 {[%clk 0:02:57]} 9... Bxe5 {[%clk 0:02:24.9]}
10. Bxe5 {[%clk 0:02:53.3]} 10... Nd7 {[%clk 0:02:22.6]} 11. Bd6 {[%clk
0:02:41.1]} 11... Re8 {[%clk 0:02:19.9]} 12. Qg3 {[%clk 0:02:36.4]} 12... e5
{[%clk 0:02:07.6]} 13. dxe5 {[%clk 0:02:33.5]} 13... Ne6 {[%clk 0:01:55.7]} 14.
f4 {[%clk 0:02:21.3]} 14... d4 {[%clk 0:01:38.7]} 15. Ne4 {[%clk 0:02:06.4]}
15... dxe3 {[%clk 0:01:28.4]} 16. O-O-O {[%clk 0:02:06.5]} 16... Qa5 {[%clk
0:01:10.7]} 17. Bc4 {[%clk 0:01:40.1]} 17... e2 {[%clk 0:00:52]} 18. Rd2 {[%clk
0:01:31.6]} 18... Kh8 {[%clk 0:00:45.5]} 19. Re1 {[%clk 0:01:13.2]} 19... Ndf8
{[%clk 0:00:31.6]} 20. Rexe2 {[%clk 0:01:06.9]} 20... b5 {[%clk 0:00:26.3]} 21.
Bb3 {[%clk 0:01:05.8]} 21... Qb6 {[%clk 0:00:21.9]} 22. f5 {[%clk 0:01:02.3]}
22... Nd4 {[%clk 0:00:19.8]} 23. f6 {[%clk 0:00:56]} 23... Nxe2+ {[%clk
0:00:11.8]} 24. Rxe2 {[%clk 0:00:56.9]} 24... Ng6 {[%clk 0:00:03.4]} 25. Bxf7
{[%clk 0:00:48.1]} 25... Qg1+ {[%clk 0:00:02.1]} 26. Re1 {[%clk 0:00:47.9]}
26... Qd4 {[%clk 0:00:02.3]} 27. Bxe8 {[%clk 0:00:42.3]} 27... Be6 {[%clk
0:00:02.5]} 28. Bxg6 {[%clk 0:00:39.8]} 1-0

[Event "*** SCC Grand Prix: Titled Tuesday Blitz"]
[Site "Chess.com"]
[Date "2020.09.29"]
[Round "5"]
[White "FearNoEvil12"]
[Black "GMJustin"]
[Result "1-0"]
[WhiteElo "2072"]
[BlackElo "2263"]
[TimeControl "180+1"]
[EndTime "10:54:28 PDT"]
[Termination "FearNoEvil12 won on time"]

1. e4 {[%clk 0:03:00.9]} 1... e5 {[%clk 0:02:55.3]} 2. d4 {[%clk 0:03:00.1]}
2... exd4 {[%clk 0:02:54]} 3. Bc4 {[%clk 0:03:00.6]} 3... Nf6 {[%clk 0:02:15.4]}
4. Nf3 {[%clk 0:03:00.2]} 4... Bb4+ {[%clk 0:01:39.2]} 5. c3 {[%clk 0:02:58.4]}
5... dxc3 {[%clk 0:01:38.7]} 6. bxc3 {[%clk 0:02:58.9]} 6... Bc5 {[%clk
0:00:41.5]} 7. e5 {[%clk 0:02:58.5]} 7... d5 {[%clk 0:00:31.5]} 8. Bb3 {[%clk
0:02:56.1]} 8... Ne4 {[%clk 0:00:28.9]} 9. O-O {[%clk 0:02:54.2]} 9... c6 {[%clk
0:00:23.5]} 10. h3 {[%clk 0:02:37.8]} 10... O-O {[%clk 0:00:22.5]} 11. Qc2
{[%clk 0:02:34]} 11... Bf5 {[%clk 0:00:21.7]} 12. Qb2 {[%clk 0:02:18.1]} 12...
Nd7 {[%clk 0:00:20.9]} 13. Nbd2 {[%clk 0:02:16.9]} 13... Re8 {[%clk 0:00:17.9]}
14. Nxe4 {[%clk 0:02:14.1]} 14... dxe4 {[%clk 0:00:16.8]} 15. Nd4 {[%clk
0:02:13.3]} 15... Rxe5 {[%clk 0:00:10.6]} 16. Bf4 {[%clk 0:02:04.7]} 16... Bxd4
{[%clk 0:00:10.4]} 17. cxd4 {[%clk 0:02:02.2]} 17... Rb5 {[%clk 0:00:10.6]} 18.
Qd2 {[%clk 0:01:48]} 18... Nf6 {[%clk 0:00:09.8]} 19. Rad1 {[%clk 0:01:41.7]}
19... Be6 {[%clk 0:00:09.4]} 20. Be5 {[%clk 0:01:40.5]} 20... Bxb3 {[%clk
0:00:08.8]} 21. axb3 {[%clk 0:01:38.2]} 21... Rxb3 {[%clk 0:00:09]} 22. Qg5
{[%clk 0:01:35.5]} 22... h6 {[%clk 0:00:07.4]} 23. Qh4 {[%clk 0:01:33.5]} 23...
Nd5 {[%clk 0:00:05.7]} 24. Qxe4 {[%clk 0:01:27.6]} 24... f6 {[%clk 0:00:05.6]}
25. Bg3 {[%clk 0:01:25.7]} 25... Qe7 {[%clk 0:00:05.5]} 26. Qf5 {[%clk
0:01:23.2]} 26... Re8 {[%clk 0:00:04.2]} 27. Ra1 {[%clk 0:01:09.8]} 27... a6
{[%clk 0:00:03.7]} 28. Kh2 {[%clk 0:01:08.5]} 28... Qe6 {[%clk 0:00:03.2]} 29.
Qc2 {[%clk 0:01:06.7]} 29... Rb5 {[%clk 0:00:03.1]} 30. Qg6 {[%clk 0:01:02.9]}
30... Qf7 {[%clk 0:00:02.8]} 31. Qd3 {[%clk 0:00:59.7]} 31... a5 {[%clk
0:00:02.6]} 32. Rfb1 {[%clk 0:00:53.8]} 32... Re6 {[%clk 0:00:00.5]} 33. Rxb5
{[%clk 0:00:51.5]} 1-0

[Event "*** SCC Grand Prix: Titled Tuesday Blitz"]
[Site "Chess.com"]
[Date "2020.09.29"]
[Round "5"]
[White "boasovietica"]
[Black "rududuyk"]
[Result "1-0"]
[WhiteElo "2444"]
[BlackElo "2157"]
[TimeControl "180+1"]
[EndTime "10:54:31 PDT"]
[Termination "boasovietica won by resignation"]

1. e4 {[%clk 0:03:00.9]} 1... e6 {[%clk 0:02:58.7]} 2. d4 {[%clk 0:02:59.3]}
2... d5 {[%clk 0:02:58.6]} 3. Nd2 {[%clk 0:02:59.6]} 3... Nf6 {[%clk 0:02:54.3]}
4. e5 {[%clk 0:02:59.2]} 4... Nfd7 {[%clk 0:02:54.9]} 5. f4 {[%clk 0:02:59.7]}
5... c5 {[%clk 0:02:54]} 6. c3 {[%clk 0:03:00.1]} 6... Nc6 {[%clk 0:02:52.3]} 7.
Ndf3 {[%clk 0:02:59.3]} 7... cxd4 {[%clk 0:02:44.5]} 8. cxd4 {[%clk 0:03:00.2]}
8... a5 {[%clk 0:02:43.9]} 9. g3 {[%clk 0:02:55.6]} 9... a4 {[%clk 0:02:40.9]}
10. Kf2 {[%clk 0:02:45.6]} 10... a3 {[%clk 0:02:19]} 11. b3 {[%clk 0:02:45.7]}
11... Nb4 {[%clk 0:02:18.2]} 12. Kg2 {[%clk 0:02:34.2]} 12... b6 {[%clk
0:02:07.4]} 13. h4 {[%clk 0:02:20.3]} 13... Ba6 {[%clk 0:02:06.4]} 14. Rh2
{[%clk 0:02:15.7]} 14... Bxf1+ {[%clk 0:01:59.3]} 15. Kxf1 {[%clk 0:02:16.6]}
15... Qc8 {[%clk 0:01:55.9]} 16. Bd2 {[%clk 0:01:58.8]} 16... Qa6+ {[%clk
0:01:50]} 17. Qe2 {[%clk 0:01:51.7]} 17... Rc8 {[%clk 0:01:24.6]} 18. Bxb4
{[%clk 0:01:33.5]} 18... Qxe2+ {[%clk 0:01:23.1]} 19. Rxe2 {[%clk 0:01:30.8]}
19... Bxb4 {[%clk 0:01:22.9]} 20. Nh3 {[%clk 0:01:22.5]} 20... Rc3 {[%clk
0:01:15.3]} 21. Kg2 {[%clk 0:01:07.6]} 21... O-O {[%clk 0:01:12.8]} 22. Nf2
{[%clk 0:01:07.6]} 22... Rfc8 {[%clk 0:01:10.2]} 23. Ne1 {[%clk 0:01:06.2]}
23... Rc1 {[%clk 0:00:59.1]} 24. Rxc1 {[%clk 0:01:05.4]} 24... Rxc1 {[%clk
0:00:59.3]} 25. Nfd3 {[%clk 0:01:03.8]} 25... Rxe1 {[%clk 0:00:48.1]} 26. Nxe1
{[%clk 0:01:03.2]} 26... Bc3 {[%clk 0:00:42.3]} 27. Nf3 {[%clk 0:00:58.8]} 27...
b5 {[%clk 0:00:41.3]} 28. Kf2 {[%clk 0:00:57.9]} 28... Nb8 {[%clk 0:00:39.8]}
29. Ke3 {[%clk 0:00:57.5]} 29... Nc6 {[%clk 0:00:39.1]} 30. Kd3 {[%clk
0:00:57.6]} 30... b4 {[%clk 0:00:38.9]} 31. Rc2 {[%clk 0:00:51.4]} 31... Kf8
{[%clk 0:00:37.4]} 32. Rxc3 {[%clk 0:00:51.6]} 32... bxc3 {[%clk 0:00:37.9]} 33.
Kxc3 {[%clk 0:00:52.5]} 33... Ke7 {[%clk 0:00:37.4]} 34. b4 {[%clk 0:00:52.6]}
34... Kd7 {[%clk 0:00:36.8]} 35. Kb3 {[%clk 0:00:52.8]} 35... Na7 {[%clk
0:00:34.4]} 36. Kxa3 {[%clk 0:00:51.9]} 36... Nb5+ {[%clk 0:00:35.3]} 37. Kb3
{[%clk 0:00:51.9]} 37... h6 {[%clk 0:00:35]} 38. a4 {[%clk 0:00:52.3]} 38... Nc7
{[%clk 0:00:34.2]} 39. h5 {[%clk 0:00:52.2]} 39... Kc6 {[%clk 0:00:33.5]} 40. g4
{[%clk 0:00:52]} 40... Kb6 {[%clk 0:00:32.9]} 41. g5 {[%clk 0:00:52]} 41... Ne8
{[%clk 0:00:31]} 42. Nh4 {[%clk 0:00:49.9]} 42... f6 {[%clk 0:00:28.6]} 43. exf6
{[%clk 0:00:47.6]} 43... hxg5 {[%clk 0:00:27.7]} 44. f7 {[%clk 0:00:46.3]} 1-0

[Event "*** SCC Grand Prix: Titled Tuesday Blitz"]
[Site "Chess.com"]
[Date "2020.09.29"]
[Round "5"]
[White "giantslayer83"]
[Black "barbara25"]
[Result "1-0"]
[WhiteElo "2695"]
[BlackElo "2347"]
[TimeControl "180+1"]
[EndTime "10:54:31 PDT"]
[Termination "giantslayer83 won by resignation"]

1. c4 {[%clk 0:03:00.9]} 1... Nf6 {[%clk 0:02:58.1]} 2. Nc3 {[%clk 0:03:00.6]}
2... e6 {[%clk 0:02:58.5]} 3. e4 {[%clk 0:03:00.5]} 3... d6 {[%clk 0:02:58.9]}
4. d4 {[%clk 0:03:00.1]} 4... Be7 {[%clk 0:02:58.1]} 5. Nf3 {[%clk 0:02:59.9]}
5... b6 {[%clk 0:02:56.3]} 6. Bd3 {[%clk 0:02:55.5]} 6... Bb7 {[%clk 0:02:56.2]}
7. O-O {[%clk 0:02:55.6]} 7... c5 {[%clk 0:02:56.3]} 8. d5 {[%clk 0:02:48.2]}
8... O-O {[%clk 0:02:54.1]} 9. dxe6 {[%clk 0:02:35.3]} 9... fxe6 {[%clk
0:02:53.6]} 10. Ng5 {[%clk 0:02:36.2]} 10... Qd7 {[%clk 0:02:50.9]} 11. f4
{[%clk 0:02:33.7]} 11... h6 {[%clk 0:02:49.8]} 12. Nf3 {[%clk 0:02:32.3]} 12...
Nc6 {[%clk 0:02:49.9]} 13. Qe2 {[%clk 0:02:29.6]} 13... e5 {[%clk 0:02:48.3]}
14. fxe5 {[%clk 0:02:21.8]} 14... dxe5 {[%clk 0:02:47.9]} 15. Nd5 {[%clk
0:02:21.4]} 15... Nd4 {[%clk 0:02:43.5]} 16. Qe1 {[%clk 0:02:14.5]} 16... Nxf3+
{[%clk 0:02:07.1]} 17. Rxf3 {[%clk 0:02:13.5]} 17... Nxd5 {[%clk 0:02:06.4]} 18.
exd5 {[%clk 0:02:14.4]} 18... Rxf3 {[%clk 0:02:05.4]} 19. gxf3 {[%clk
0:02:15.3]} 19... b5 {[%clk 0:02:02.6]} 20. b3 {[%clk 0:02:14.5]} 20... bxc4
{[%clk 0:02:00.4]} 21. bxc4 {[%clk 0:02:15.4]} 21... Bf6 {[%clk 0:02:00.5]} 22.
Qe4 {[%clk 0:02:15.1]} 22... Qh3 {[%clk 0:01:44.6]} 23. Be3 {[%clk 0:02:10.5]}
23... Rc8 {[%clk 0:01:26.9]} 24. Rf1 {[%clk 0:02:09.1]} 24... Rc7 {[%clk
0:01:09.7]} 25. Qh7+ {[%clk 0:02:07.1]} 25... Kf8 {[%clk 0:01:01.5]} 26. Bg6
{[%clk 0:01:46.1]} 26... Ke7 {[%clk 0:00:53.5]} 27. Qg8 {[%clk 0:01:44.2]} 27...
Kd6 {[%clk 0:00:37.3]} 28. Rb1 {[%clk 0:01:03.8]} 28... Bc8 {[%clk 0:00:29.6]}
29. Be4 {[%clk 0:00:52.7]} 29... Qd7 {[%clk 0:00:18.6]} 30. Rb8 {[%clk
0:00:47.2]} 30... Bb7 {[%clk 0:00:15.5]} 31. Re8 {[%clk 0:00:39.3]} 31... Qf7
{[%clk 0:00:12.7]} 32. Re6+ {[%clk 0:00:36.4]} 1-0

[Event "*** SCC Grand Prix: Titled Tuesday Blitz"]
[Site "Chess.com"]
[Date "2020.09.29"]
[Round "5"]
[White "chessmadara"]
[Black "Loy_Konstantin"]
[Result "0-1"]
[WhiteElo "2124"]
[BlackElo "2376"]
[TimeControl "180+1"]
[EndTime "10:54:31 PDT"]
[Termination "Loy_Konstantin won by resignation"]

1. e4 {[%clk 0:03:00.9]} 1... c5 {[%clk 0:02:59.7]} 2. Nf3 {[%clk 0:02:59.9]}
2... d6 {[%clk 0:02:59.1]} 3. d4 {[%clk 0:02:59.9]} 3... cxd4 {[%clk 0:03:00]}
4. Nxd4 {[%clk 0:03:00.1]} 4... Nf6 {[%clk 0:03:00.5]} 5. Nc3 {[%clk 0:03:00.1]}
5... g6 {[%clk 0:03:00.9]} 6. Be3 {[%clk 0:02:56.1]} 6... Bg7 {[%clk 0:03:01]}
7. Qd2 {[%clk 0:02:55.8]} 7... O-O {[%clk 0:03:01.2]} 8. f3 {[%clk 0:02:51.4]}
8... Nc6 {[%clk 0:03:01.5]} 9. g4 {[%clk 0:02:49.7]} 9... Bd7 {[%clk 0:02:58]}
10. O-O-O {[%clk 0:02:45.7]} 10... Ne5 {[%clk 0:02:53.5]} 11. Kb1 {[%clk
0:02:43.5]} 11... Qa5 {[%clk 0:02:42.9]} 12. h4 {[%clk 0:02:28]} 12... Rac8
{[%clk 0:02:38.7]} 13. Nd5 {[%clk 0:02:10.6]} 13... Qxd2 {[%clk 0:02:37.8]} 14.
Nxe7+ {[%clk 0:02:10]} 14... Kh8 {[%clk 0:02:37.8]} 15. Bxd2 {[%clk 0:02:09.2]}
15... Rce8 {[%clk 0:02:37.5]} 16. Nd5 {[%clk 0:02:08.9]} 16... Nxd5 {[%clk
0:02:37.2]} 17. exd5 {[%clk 0:02:09.8]} 17... Nxg4 {[%clk 0:02:28.9]} 18. fxg4
{[%clk 0:02:01.5]} 18... Bxg4 {[%clk 0:02:13.1]} 19. Rc1 {[%clk 0:01:30]} 19...
Bxd4 {[%clk 0:02:11]} 20. Bh6 {[%clk 0:01:19.6]} 20... Bg7 {[%clk 0:02:07.8]}
21. Bxg7+ {[%clk 0:01:19]} 21... Kxg7 {[%clk 0:02:08.7]} 22. Rg1 {[%clk
0:01:13.5]} 22... Bf3 {[%clk 0:02:02.3]} 23. c4 {[%clk 0:01:06.9]} 23... b6
{[%clk 0:01:59]} 24. Bd3 {[%clk 0:01:03]} 24... Re3 {[%clk 0:01:57.5]} 25. Bc2
{[%clk 0:01:02.3]} 25... Rfe8 {[%clk 0:01:36.7]} 26. Rcf1 {[%clk 0:00:56]} 26...
Be4 {[%clk 0:01:31.1]} 27. Rf4 {[%clk 0:00:50]} 27... Bxc2+ {[%clk 0:01:29.6]}
28. Kxc2 {[%clk 0:00:50.9]} 28... R8e4 {[%clk 0:01:29.3]} 29. Rgf1 {[%clk
0:00:45.6]} 29... f5 {[%clk 0:01:28.5]} 30. h5 {[%clk 0:00:27]} 30... Kf6 {[%clk
0:01:20.2]} 31. h6 {[%clk 0:00:17.4]} 31... Rxf4 {[%clk 0:01:18.1]} 32. Rxf4
{[%clk 0:00:17.2]} 32... Re4 {[%clk 0:01:15.9]} 33. Rf3 {[%clk 0:00:11.5]} 33...
Rxc4+ {[%clk 0:01:14.3]} 34. Kd3 {[%clk 0:00:12]} 34... Re4 {[%clk 0:01:13.4]}
35. Rf2 {[%clk 0:00:11.8]} 35... Ke5 {[%clk 0:01:09.3]} 36. Rc2 {[%clk
0:00:11.1]} 36... Rh4 {[%clk 0:01:06.5]} 37. Rc7 {[%clk 0:00:10.8]} 37... Rxh6
{[%clk 0:01:05.7]} 38. Rxa7 {[%clk 0:00:11.4]} 38... Kxd5 {[%clk 0:01:04]} 39.
Rb7 {[%clk 0:00:11.2]} 39... Kc6 {[%clk 0:01:04.1]} 40. Rf7 {[%clk 0:00:10.6]}
40... Rh2 {[%clk 0:01:03.1]} 0-1

[Event "*** SCC Grand Prix: Titled Tuesday Blitz"]
[Site "Chess.com"]
[Date "2020.09.29"]
[Round "5"]
[White "jamalm2"]
[Black "rugbyclub"]
[Result "0-1"]
[WhiteElo "1712"]
[BlackElo "2163"]
[TimeControl "180+1"]
[EndTime "10:54:31 PDT"]
[Termination "rugbyclub won on time"]

1. Nf3 {[%clk 0:02:56.8]} 1... d5 {[%clk 0:02:58.8]} 2. e3 {[%clk 0:02:54.5]}
2... Nf6 {[%clk 0:02:47.2]} 3. c4 {[%clk 0:02:54]} 3... e6 {[%clk 0:02:47.7]} 4.
b3 {[%clk 0:02:52.9]} 4... c5 {[%clk 0:02:44.4]} 5. Bb2 {[%clk 0:02:52.3]} 5...
Nc6 {[%clk 0:02:45]} 6. d4 {[%clk 0:02:47.3]} 6... cxd4 {[%clk 0:02:42.1]} 7.
exd4 {[%clk 0:02:46.2]} 7... Bb4+ {[%clk 0:02:37.9]} 8. Nbd2 {[%clk 0:02:45.6]}
8... O-O {[%clk 0:02:36.2]} 9. Bd3 {[%clk 0:02:45]} 9... b6 {[%clk 0:02:32]} 10.
O-O {[%clk 0:02:44.2]} 10... Bb7 {[%clk 0:02:31.9]} 11. Ne5 {[%clk 0:02:41.8]}
11... dxc4 {[%clk 0:02:25.5]} 12. Nxc6 {[%clk 0:02:37.6]} 12... Bxc6 {[%clk
0:02:24.2]} 13. bxc4 {[%clk 0:02:36.6]} 13... Qd7 {[%clk 0:02:18.8]} 14. Nf3
{[%clk 0:02:32.4]} 14... Qb7 {[%clk 0:02:15]} 15. Nh4 {[%clk 0:02:13.4]} 15...
Be7 {[%clk 0:02:09.9]} 16. Qe2 {[%clk 0:01:51.8]} 16... Rfe8 {[%clk 0:02:07.3]}
17. f4 {[%clk 0:01:44.9]} 17... Rad8 {[%clk 0:02:05.4]} 18. Nf3 {[%clk 0:01:43]}
18... g6 {[%clk 0:02:00.4]} 19. Ne5 {[%clk 0:01:42.1]} 19... Be4 {[%clk
0:01:59.6]} 20. Bxe4 {[%clk 0:01:40.9]} 20... Qxe4 {[%clk 0:01:59.5]} 21. Rae1
{[%clk 0:01:29.5]} 21... Qxe2 {[%clk 0:01:40.4]} 22. Rxe2 {[%clk 0:01:25.6]}
22... Rc8 {[%clk 0:01:31.1]} 23. g4 {[%clk 0:01:16.1]} 23... Red8 {[%clk
0:01:27.9]} 24. g5 {[%clk 0:01:12.7]} 24... Nh5 {[%clk 0:01:26.9]} 25. Rc2
{[%clk 0:00:57.1]} 25... Ng7 {[%clk 0:01:23.5]} 26. Ng4 {[%clk 0:00:48.7]} 26...
Nf5 {[%clk 0:01:22.7]} 27. Rd1 {[%clk 0:00:33]} 27... b5 {[%clk 0:01:02.8]} 28.
c5 {[%clk 0:00:21.6]} 28... Bxc5 {[%clk 0:00:56.4]} 29. Nf6+ {[%clk 0:00:18.1]}
29... Kh8 {[%clk 0:00:51.5]} 30. dxc5 {[%clk 0:00:00.8]} 30... Rxd1+ {[%clk
0:00:50.5]} 0-1

[Event "*** SCC Grand Prix: Titled Tuesday Blitz"]
[Site "Chess.com"]
[Date "2020.09.29"]
[Round "5"]
[White "ElusiveCat"]
[Black "RU_B9"]
[Result "1-0"]
[WhiteElo "2285"]
[BlackElo "1889"]
[TimeControl "180+1"]
[EndTime "10:54:33 PDT"]
[Termination "ElusiveCat won on time"]

1. d4 {[%clk 0:02:58.9]} 1... Nf6 {[%clk 0:02:57.7]} 2. c4 {[%clk 0:02:55.2]}
2... e6 {[%clk 0:02:57.1]} 3. Nc3 {[%clk 0:02:54.8]} 3... Bb4 {[%clk 0:02:57]}
4. f3 {[%clk 0:02:55]} 4... d5 {[%clk 0:02:55.7]} 5. a3 {[%clk 0:02:54.3]} 5...
Bxc3+ {[%clk 0:02:55]} 6. bxc3 {[%clk 0:02:55.2]} 6... c5 {[%clk 0:02:55]} 7.
cxd5 {[%clk 0:02:54.1]} 7... Nxd5 {[%clk 0:02:52.4]} 8. dxc5 {[%clk 0:02:52.8]}
8... f5 {[%clk 0:02:49.5]} 9. c4 {[%clk 0:02:38.3]} 9... Qf6 {[%clk 0:02:41.8]}
10. Bd2 {[%clk 0:02:11.6]} 10... Nc3 {[%clk 0:01:31.1]} 11. Qc1 {[%clk 0:02:09]}
11... Na4 {[%clk 0:01:30.1]} 12. Rb1 {[%clk 0:02:08.8]} 12... Na6 {[%clk
0:01:21.2]} 13. c6 {[%clk 0:01:47.3]} 13... bxc6 {[%clk 0:01:22.1]} 14. e3
{[%clk 0:01:28.5]} 14... N6c5 {[%clk 0:01:15.1]} 15. Nh3 {[%clk 0:01:24.4]}
15... O-O {[%clk 0:01:08.2]} 16. Be2 {[%clk 0:01:23]} 16... Ba6 {[%clk
0:00:35.3]} 17. O-O {[%clk 0:01:20.3]} 17... Rad8 {[%clk 0:00:31.7]} 18. Nf2
{[%clk 0:01:15.5]} 18... e5 {[%clk 0:00:28.8]} 19. Ba5 {[%clk 0:01:09.2]} 19...
Rd7 {[%clk 0:00:25.6]} 20. Rb4 {[%clk 0:01:06.2]} 20... h6 {[%clk 0:00:17.3]}
21. Qc2 {[%clk 0:01:04.2]} 21... Nb6 {[%clk 0:00:14.6]} 22. Bxb6 {[%clk
0:01:03.2]} 22... axb6 {[%clk 0:00:14.7]} 23. Rxb6 {[%clk 0:01:04.1]} 23... Rfd8
{[%clk 0:00:13.4]} 24. Rd1 {[%clk 0:01:03.7]} 24... Qe6 {[%clk 0:00:09.8]} 25.
Rbb1 {[%clk 0:00:53]} 25... e4 {[%clk 0:00:04.7]} 26. fxe4 {[%clk 0:00:46.3]}
26... Nxe4 {[%clk 0:00:03.3]} 27. Nxe4 {[%clk 0:00:45.8]} 27... fxe4 {[%clk
0:00:04]} 28. Rxd7 {[%clk 0:00:40.6]} 28... Rxd7 {[%clk 0:00:03.6]} 29. a4
{[%clk 0:00:32.9]} 1-0

[Event "*** SCC Grand Prix: Titled Tuesday Blitz"]
[Site "Chess.com"]
[Date "2020.09.29"]
[Round "5"]
[White "Nastya_Rakhmangulova"]
[Black "Sacbutt"]
[Result "1-0"]
[WhiteElo "2437"]
[BlackElo "2275"]
[TimeControl "180+1"]
[EndTime "10:54:35 PDT"]
[Termination "Nastya_Rakhmangulova won by resignation"]

1. e4 {[%clk 0:03:00.9]} 1... d5 {[%clk 0:02:59.2]} 2. exd5 {[%clk 0:03:00.3]}
2... Qxd5 {[%clk 0:03:00.1]} 3. Nc3 {[%clk 0:03:00.6]} 3... Qd6 {[%clk
0:03:00.5]} 4. d4 {[%clk 0:03:00]} 4... Nf6 {[%clk 0:03:00.9]} 5. Nf3 {[%clk
0:03:00.6]} 5... c6 {[%clk 0:03:01.3]} 6. g3 {[%clk 0:02:44.1]} 6... Bg4 {[%clk
0:03:00.5]} 7. Bg2 {[%clk 0:02:44]} 7... e6 {[%clk 0:03:00.8]} 8. O-O {[%clk
0:02:42.2]} 8... Be7 {[%clk 0:03:00.6]} 9. h3 {[%clk 0:02:42.4]} 9... Bxf3
{[%clk 0:02:58.6]} 10. Bxf3 {[%clk 0:02:42.2]} 10... Nbd7 {[%clk 0:02:57.9]} 11.
Bf4 {[%clk 0:02:37.9]} 11... Qb4 {[%clk 0:02:58]} 12. a3 {[%clk 0:02:06.8]}
12... Qa5 {[%clk 0:02:56.1]} 13. b4 {[%clk 0:02:02.8]} 13... Qd8 {[%clk
0:02:53.5]} 14. b5 {[%clk 0:02:00.7]} 14... Nd5 {[%clk 0:02:43.3]} 15. bxc6
{[%clk 0:01:49.5]} 15... Nxc3 {[%clk 0:02:09.9]} 16. cxd7+ {[%clk 0:01:48.4]}
16... Qxd7 {[%clk 0:02:08.8]} 17. Qd3 {[%clk 0:01:48.1]} 17... Nd5 {[%clk
0:02:05.6]} 18. Be5 {[%clk 0:01:33.8]} 18... O-O {[%clk 0:01:59.2]} 19. c4
{[%clk 0:01:31.9]} 19... Nf6 {[%clk 0:01:53.5]} 20. Rab1 {[%clk 0:01:28.4]}
20... Qa4 {[%clk 0:01:30.5]} 21. Rxb7 {[%clk 0:01:20]} 21... Qxa3 {[%clk
0:01:26.6]} 22. Rb3 {[%clk 0:01:18.7]} 22... Qa6 {[%clk 0:01:21.5]} 23. Bxa8
{[%clk 0:01:18.2]} 23... Rxa8 {[%clk 0:01:22.4]} 24. Rfb1 {[%clk 0:01:18.2]}
24... Bd6 {[%clk 0:01:16.5]} 25. c5 {[%clk 0:01:07.7]} 25... Qxd3 {[%clk
0:01:04.4]} 26. Rxd3 {[%clk 0:01:08.6]} 26... Bxe5 {[%clk 0:01:03.1]} 27. dxe5
{[%clk 0:01:09.5]} 27... Nd5 {[%clk 0:01:02.7]} 28. Ra3 {[%clk 0:01:03.4]} 28...
g6 {[%clk 0:00:50.9]} 29. Rb7 {[%clk 0:01:02.2]} 29... a5 {[%clk 0:00:44.8]} 30.
c6 {[%clk 0:00:55.3]} 30... Rc8 {[%clk 0:00:43.1]} 31. Rxa5 {[%clk 0:00:53.4]}
31... Rxc6 {[%clk 0:00:24.1]} 32. Raa7 {[%clk 0:00:33.4]} 32... Rc1+ {[%clk
0:00:23.1]} 33. Kg2 {[%clk 0:00:33.6]} 33... Re1 {[%clk 0:00:23.6]} 34. Rxf7
{[%clk 0:00:33]} 34... Rxe5 {[%clk 0:00:23.7]} 35. Rg7+ {[%clk 0:00:32.3]} 35...
Kf8 {[%clk 0:00:22.5]} 36. Rxh7 {[%clk 0:00:32.5]} 36... Nf6 {[%clk 0:00:20]}
1-0

[Event "*** SCC Grand Prix: Titled Tuesday Blitz"]
[Site "Chess.com"]
[Date "2020.09.29"]
[Round "5"]
[White "Savagelittlemole"]
[Black "Orest_Vovk"]
[Result "1-0"]
[WhiteElo "2607"]
[BlackElo "2394"]
[TimeControl "180+1"]
[EndTime "10:54:36 PDT"]
[Termination "Savagelittlemole won on time"]

1. e4 {[%clk 0:03:00.9]} 1... g5 {[%clk 0:02:59.5]} 2. d4 {[%clk 0:02:57.8]}
2... g4 {[%clk 0:02:59.4]} 3. Nc3 {[%clk 0:02:50.5]} 3... Bg7 {[%clk 0:02:58.5]}
4. Be3 {[%clk 0:02:49.9]} 4... d6 {[%clk 0:02:54.2]} 5. Bc4 {[%clk 0:02:49.4]}
5... c6 {[%clk 0:02:53.4]} 6. Nge2 {[%clk 0:02:45.6]} 6... Qa5 {[%clk
0:02:52.9]} 7. Qd2 {[%clk 0:02:40.1]} 7... Nf6 {[%clk 0:02:46.2]} 8. a3 {[%clk
0:02:30.4]} 8... b5 {[%clk 0:02:35.5]} 9. Bd3 {[%clk 0:02:28.3]} 9... Be6 {[%clk
0:02:23.9]} 10. O-O {[%clk 0:02:21.6]} 10... Nbd7 {[%clk 0:01:49.8]} 11. d5
{[%clk 0:02:12.7]} 11... cxd5 {[%clk 0:01:49.5]} 12. exd5 {[%clk 0:02:12.6]}
12... Nxd5 {[%clk 0:01:33.2]} 13. Nxd5 {[%clk 0:02:12]} 13... b4 {[%clk
0:01:26.2]} 14. Ndf4 {[%clk 0:01:59.9]} 14... Bxb2 {[%clk 0:01:23.2]} 15. axb4
{[%clk 0:01:53.9]} 15... Qxa1 {[%clk 0:01:08.1]} 16. Rxa1 {[%clk 0:01:52.8]}
16... Bxa1 {[%clk 0:01:09]} 17. Nxe6 {[%clk 0:01:50.8]} 17... fxe6 {[%clk
0:01:08.7]} 18. c3 {[%clk 0:01:47.6]} 18... Ne5 {[%clk 0:00:57.9]} 19. Bb5+
{[%clk 0:01:44.5]} 19... Kf7 {[%clk 0:00:57.2]} 20. Qa2 {[%clk 0:01:38.8]} 20...
Rab8 {[%clk 0:00:52.4]} 21. Ba4 {[%clk 0:01:33.4]} 21... Bxc3 {[%clk 0:00:47.7]}
22. Nxc3 {[%clk 0:01:32.4]} 22... Rxb4 {[%clk 0:00:48.1]} 23. h3 {[%clk
0:01:23.2]} 23... gxh3 {[%clk 0:00:46.4]} 24. gxh3 {[%clk 0:01:21.3]} 24... Rg8+
{[%clk 0:00:43.1]} 25. Kf1 {[%clk 0:01:15.6]} 25... Nf3 {[%clk 0:00:20.8]} 26.
Bb3 {[%clk 0:01:10]} 26... d5 {[%clk 0:00:01.8]} 27. Bxd5 {[%clk 0:01:08.8]}
27... Rg1+ {[%clk 0:00:01.2]} 28. Ke2 {[%clk 0:01:06.6]} 28... Nd4+ {[%clk
0:00:02.1]} 29. Bxd4 {[%clk 0:01:02.8]} 29... Rxd4 {[%clk 0:00:03]} 30. Bxe6+
{[%clk 0:01:00.4]} 30... Kf6 {[%clk 0:00:03.9]} 31. Bg4 {[%clk 0:00:48]} 31...
Rb4 {[%clk 0:00:01.9]} 32. Qe6+ {[%clk 0:00:46.5]} 32... Kg5 {[%clk 0:00:02.1]}
33. Qxe7+ {[%clk 0:00:45]} 33... Kf4 {[%clk 0:00:02]} 34. Qxb4+ {[%clk
0:00:45.6]} 1-0